bitfinex-derivatives/quotes_ETHF0:USTF0_20240930
["timestamp","ask_amount","ask_price","bid_price","bid_amount"]
[1727661342890,3.2078,2620.8,2620.6,0.30519]
[1727661343094,3.2078,2620.8,2620.7,0.30518]
[1727661343593,3.2078,2620.8,2620.3,3.97085]
[1727661343594,3.2078,2620.8,2620.3,3.2078]
[1727661343797,3.2078,2620.8,2620.7,0.30518]
[1727661344592,2.23226038,2621.0,2620.8,0.30516]
[1727661344890,0.7723,2621.0,2620.9,0.30516]
[1727661345092,0.3778,2621.0,2620.9,0.30516]
[1727661345294,1.45996038,2621.3,2620.9,3.2078]
[1727661345487,1.46775992,2621.4,2621.3,0.30511]
[1727661345794,4.67555992,2621.5,2621.0,0.67964]
[1727661345992,1.94153757,2621.6,2620.5,3.6077]
[1727661345993,3.2078,2621.2,2620.5,3.6077]
[1727661346294,3.2078,2621.2,2620.7,0.30517]
[1727661346295,0.30515,2621.0,2620.7,0.30517]
[1727661346508,4.67555992,2620.9,2620.6,4.29483356]
[1727661346789,4.67555992,2620.9,2620.3,0.3753]
[1727661346790,0.3052,2620.6,2620.3,0.30523]
[1727661347190,1.46775992,2620.7,2620.2,3.2078]
[1727661347388,1.77294992,2620.7,2620.4,0.30521]
[1727661347792,0.30519,2620.6,2620.3,0.30522]
[1727661347993,3.2078,2620.6,2620.0,0.3917]
[1727661348196,1.77296992,2620.5,2620.0,0.3917]
[1727661348394,1.77296992,2620.5,2620.2,0.30524]
[1727661348596,1.77296992,2620.5,2620.0,0.3917]
[1727661348597,1.46775992,2620.5,2620.1,0.30525]
[1727661348792,5.37925992,2620.6,2620.2,0.30523]
[1727661349095,1.46775992,2620.5,2620.2,0.30523]
[1727661349399,0.30521,2620.5,2620.2,0.30523]
[1727661350295,0.30522,2620.4,2620.1,0.30524]
[1727661350700,0.30525,2620.2,2619.4,4.59325028]
[1727661350895,0.30525,2620.2,2619.4,4.396]
[1727661351097,0.30525,2620.2,2619.9,0.30527]
[1727661351292,1.77300992,2620.2,2619.9,0.30527]
[1727661351495,1.46775992,2620.2,2619.9,0.30527]
[1727661351890,1.77300992,2620.2,2619.9,0.30527]
[1727661352096,1.77300992,2620.2,2620.1,0.30525]
[1727661352097,1.46775992,2620.2,2620.1,0.30525]
[1727661352300,1.46775992,2620.4,2620.2,0.30524]
[1727661352505,3.2078,2620.6,2620.0,7.37779143]
[1727661352689,3.2078,2620.6,2620.1,0.7814]
[1727661352894,1.46775992,2620.8,2620.1,4.95139143]
[1727661353193,3.2078,2620.9,2620.1,4.95139143]
[1727661353194,1.46775992,2620.9,2620.8,0.30517]
[1727661353703,0.4074,2621.0,2620.4,0.76304]
[1727661353704,1.46775992,2621.0,2620.9,0.30516]
[1727661354093,5.45445757,2621.2,2620.5,4.00183175]
[1727661354094,1.46775992,2621.1,2620.5,4.00183175]
[1727661354293,0.30517,2620.8,2620.6,0.30518]
[1727661354491,4.67555992,2620.9,2620.6,0.30518]
[1727661354688,4.67555992,2620.9,2620.3,3.2078]
[1727661354689,4.98071992,2620.9,2620.3,3.2078]
[1727661354889,4.67555992,2620.9,2620.3,3.2078]
[1727661355101,4.67555992,2620.9,2620.7,0.30517]
[1727661355296,4.67555992,2620.9,2620.8,0.30517]
[1727661355505,3.2078,2620.9,2620.8,0.30517]
[1727661355802,4.67555992,2620.9,2620.7,0.30517]
[1727661355999,4.67555992,2620.9,2620.8,0.30517]
[1727661356701,4.67555992,2620.9,2620.4,4.17770044]
[1727661357293,4.67555992,2620.9,2620.8,0.30517]
[1727661357693,3.2078,2620.9,2620.8,0.30517]
[1727661357889,1.46775992,2621.0,2620.6,3.2078]
[1727661358095,1.46775992,2621.2,2621.1,0.30513]
[1727661358296,1.46775992,2621.3,2621.2,0.30512]
[1727661358502,1.46775992,2621.3,2620.9,3.2078]
[1727661358802,1.46775992,2621.3,2621.1,0.30513]
[1727661359408,3.84775992,2621.2,2620.8,0.3872]
[1727661359706,0.30516,2620.9,2620.7,0.3918]
[1727661359900,0.30515,2621.0,2620.7,0.69697]
[1727661360498,0.30516,2620.9,2620.6,0.30519]
[1727661360698,0.30515,2621.0,2620.7,0.30518]
[1727661360898,0.30516,2620.9,2620.6,0.30519]
[1727661361111,1.46775992,2621.0,2620.4,4.11198148]
[1727661361298,3.2078,2620.8,2620.4,4.11198148]
[1727661361503,3.2078,2620.8,2620.6,0.30519]
[1727661361796,4.67555992,2620.8,2620.6,0.30519]
[1727661362105,4.98073992,2620.8,2620.5,0.30519]
[1727661362608,1.46775992,2620.7,2620.5,0.30519]
[1727661362808,4.67555992,2620.8,2620.3,0.8]
[1727661363003,4.67555992,2620.8,2619.9,4.19485028]
[1727661363004,3.2078,2620.5,2619.9,4.19485028]
[1727661363201,3.2078,2620.2,2619.7,0.7985]
[1727661363401,4.98079992,2620.2,2619.9,0.30527]
[1727661363597,4.98079992,2620.2,2619.7,0.7985]
[1727661363598,4.67555992,2620.2,2620.1,0.30525]
[1727661363801,4.67555992,2620.2,2620.0,0.30526]
[1727661364007,4.67555992,2620.2,2619.8,4.0754523]
[1727661364207,1.46775992,2620.1,2619.8,4.0754523]
[1727661364509,1.83875992,2620.1,2619.7,0.4021]
[1727661364701,1.83875992,2620.1,2619.7,0.30529]
[1727661364702,0.30526,2620.0,2619.7,0.30529]
[1727661365007,1.83875992,2620.1,2619.3,3.6109]
[1727661365208,3.2078,2619.9,2619.3,3.6109]
[1727661365413,3.2078,2619.9,2619.6,0.3053]
[1727661365598,3.51308,2619.9,2619.6,0.3053]
[1727661366504,3.2078,2619.9,2619.4,4.07551187]
[1727661366705,1.83875992,2620.1,2619.9,0.30527]
[1727661366908,1.83875992,2620.1,2619.4,4.07551187]
[1727661366909,0.371,2620.1,2619.4,4.07551187]
[1727661367110,0.371,2620.1,2619.8,0.30528]
[1727661367312,0.371,2620.1,2619.4,4.07551187]
[1727661367501,3.2078,2620.2,2620.1,0.30525]
[1727661367698,1.46775992,2620.4,2619.6,3.2078]
[1727661368013,5.08055992,2620.6,2620.4,0.30522]
[1727661368203,3.6128,2620.6,2619.9,3.2078]
[1727661368506,5.08055992,2620.6,2620.0,4.11622671]
[1727661368699,5.08055992,2620.6,2620.4,0.30522]
[1727661368904,3.6128,2620.6,2620.4,0.30522]
[1727661369209,3.6128,2620.6,2620.3,0.30522]
[1727661369210,5.38575992,2620.6,2620.3,0.30522]
[1727661369405,5.08055992,2620.6,2620.4,0.30521]
[1727661369922,5.38574992,2620.6,2620.4,0.30521]
[1727661370112,5.08055992,2620.6,2620.4,0.30521]
[1727661370510,5.38575992,2620.6,2620.3,0.30522]
[1727661371008,5.33455109,2620.4,2619.2,0.98705028]
[1727661371200,0.30528,2619.9,2619.6,0.30531]
[1727661371406,0.30529,2619.8,2619.5,4.47667771]
[1727661371607,0.30529,2619.8,2619.5,0.30531]
[1727661372212,1.88264155,2619.9,2619.6,0.3053]
[1727661372418,1.88264155,2619.9,2619.1,3.9923]
[1727661372618,2.18792155,2619.9,2619.5,0.30531]
[1727661372813,0.71608,2619.9,2619.5,0.30531]
[1727661373215,0.4108,2619.9,2619.2,4.32793412]
[1727661373408,1.14152,2620.5,2619.2,4.32793412]
[1727661373409,1.47184155,2620.4,2619.7,3.2078]
[1727661373605,1.47184155,2620.6,2619.8,0.7774]
[1727661373812,4.67964155,2620.7,2620.6,0.30519]
[1727661374019,4.67964155,2620.7,2619.8,5.20770253]
[1727661374020,2.28444155,2620.8,2620.3,3.2078]
[1727661374217,2.28444155,2620.8,2620.0,3.2078]
[1727661374218,4.67964155,2620.7,2620.0,3.2078]
[1727661374516,4.67964155,2620.7,2620.2,0.30524]
[1727661374517,1.47184155,2620.6,2620.2,0.30524]
[1727661374722,0.30525,2620.2,2619.9,4.25197261]
[1727661374921,0.30525,2620.2,2619.8,0.7774]
[1727661375113,0.30527,2620.0,2619.8,0.3857]
[1727661375315,0.30528,2619.9,2619.5,0.30531]
[1727661375511,0.30529,2619.8,2619.4,0.3913]
[1727661375818,0.3992,2620.0,2619.4,4.22534341]
[1727661376013,3.51309,2619.8,2619.4,0.30532]
[1727661376521,0.3053,2619.7,2619.4,0.30532]
[1727661376919,0.30532,2619.6,2619.2,0.30535]
[1727661377123,0.30531,2619.7,2619.0,3.5991]
[1727661377319,3.2078,2619.8,2619.4,0.30532]
[1727661377513,0.3053,2619.7,2619.4,0.30532]
[1727661378325,0.30532,2619.6,2619.3,0.30534]
[1727661378720,3.2078,2619.8,2619.4,0.30533]
[1727661378918,3.51309,2619.8,2619.5,0.30531]
[1727661379122,3.2078,2619.8,2619.1,3.99732928]
[1727661379417,0.3053,2619.7,2619.1,3.99732928]
[1727661379614,3.2078,2619.8,2619.4,0.30532]
[1727661379813,3.2078,2619.8,2619.1,3.99732928]
[1727661380026,3.2078,2619.8,2619.7,0.3053]
[1727661380230,3.2078,2619.8,2619.2,4.42309746]
[1727661380522,3.2078,2619.8,2619.5,0.30532]
[1727661380523,3.51309,2619.8,2619.5,0.30532]
[1727661380727,3.51309,2619.8,2619.1,4.42309746]
[1727661380918,0.3053,2619.7,2619.4,0.30533]
[1727661381118,3.2078,2619.8,2619.0,3.5991]
[1727661381327,3.2078,2619.8,2619.1,4.12024635]
[1727661381531,3.2078,2619.8,2619.2,0.30536]
[1727661381532,5.89309,2619.8,2619.2,0.30536]
[1727661381718,5.5878,2619.8,2619.4,0.30532]
[1727661381917,5.5878,2619.8,2619.1,4.12024635]
[1727661382319,2.7792,2620.0,2619.8,0.30528]
[1727661382519,2.7792,2620.0,2619.3,3.2078]
[1727661382719,2.7792,2620.0,2619.9,0.30527]
[1727661382720,2.6503,2620.0,2619.9,0.30527]
[1727661383128,3.2078,2620.1,2619.5,0.3887]
[1727661383331,3.2078,2620.1,2620.0,0.30526]
[1727661384123,3.2078,2620.1,2619.6,4.81332483]
[1727661384330,3.2078,2620.1,2619.9,0.30527]
[1727661384527,3.2078,2620.1,2619.6,4.81332483]
[1727661384823,5.5878,2620.1,2619.6,0.401]
[1727661385027,1.47184155,2620.4,2620.0,0.30526]
[1727661385028,3.85184155,2620.4,2620.0,0.30526]
[1727661385231,2.764,2620.6,2620.4,0.30522]
[1727661385428,0.30523,2620.3,2620.1,4.19181368]
[1727661385621,0.30523,2620.3,2619.6,0.30531]
[1727661385622,3.14311,2620.2,2619.6,0.30531]
[1727661385826,5.5878,2619.7,2619.6,0.30531]
[1727661386029,5.5878,2619.7,2619.5,0.69401]
[1727661386230,5.5878,2619.7,2619.6,0.30531]
[1727661386532,5.5878,2619.7,2619.5,0.69401]
[1727661386734,2.38,2619.7,2619.6,0.30531]
[1727661387236,2.38,2619.7,2619.5,0.3887]
[1727661387429,2.38,2619.7,2619.5,0.69401]
[1727661387829,2.38,2619.7,2619.6,0.30531]
[1727661388630,2.38,2619.7,2619.5,0.69401]
[1727661389234,2.6853,2619.7,2619.5,0.3887]
[1727661389626,0.3053,2619.7,2619.4,0.30533]
[1727661389943,3.2078,2619.8,2619.2,0.401]
[1727661390126,0.30531,2619.6,2619.2,0.401]
[1727661390332,0.30531,2619.6,2619.3,0.30534]
[1727661390636,3.2078,2619.8,2619.2,0.70635]
[1727661390637,3.2078,2619.5,2619.2,0.70635]
[1727661391133,3.2078,2619.5,2619.2,0.401]
[1727661391529,3.2078,2619.5,2619.4,0.30533]
[1727661392435,3.2078,2619.9,2619.7,0.3053]
[1727661392738,3.51308,2619.9,2619.6,0.30531]
[1727661393036,3.2078,2619.9,2619.3,4.16640347]
[1727661393233,3.2078,2619.9,2619.4,0.30532]
[1727661393437,3.2078,2619.9,2619.3,4.16640347]
[1727661393634,3.2078,2619.9,2619.8,0.30529]
[1727661394031,3.2078,2619.9,2619.5,3.2078]
[1727661394227,3.2078,2619.9,2619.7,0.30529]
[1727661394629,3.2078,2619.9,2619.8,0.30529]
[1727661395039,3.2078,2619.9,2619.7,0.30529]
[1727661395238,3.2078,2619.9,2619.6,0.3053]
[1727661395239,3.51308,2619.9,2619.6,0.3053]
[1727661395542,0.30529,2619.8,2619.5,0.30532]
[1727661396036,3.2078,2619.9,2619.7,0.3053]
[1727661396235,3.2078,2619.9,2619.8,0.30529]
[1727661396535,0.71055,2620.2,2619.8,0.30529]
[1727661396736,0.71055,2620.2,2619.8,0.30528]
[1727661397236,0.4053,2620.2,2619.8,0.30528]
[1727661397441,0.4053,2620.2,2619.4,3.2078]
[1727661397638,0.4053,2620.2,2619.9,0.30527]
[1727661397828,0.4053,2620.2,2619.5,4.34484255]
[1727661398031,0.4053,2620.2,2619.8,0.30528]
[1727661398032,0.71054,2620.2,2619.8,0.30528]
[1727661398938,0.4053,2620.2,2619.5,4.34484255]
[1727661399134,0.4053,2620.2,2619.9,0.30526]
[1727661399442,0.4053,2620.2,2619.5,4.34484255]
[1727661399635,1.47020103,2620.5,2619.7,3.2078]
[1727661399840,0.3824,2621.1,2620.0,7.27820829]
[1727661399841,1.47020103,2620.9,2620.0,7.27820829]
[1727661400041,0.30519,2620.7,2620.3,0.30523]
[1727661400243,0.30519,2620.6,2620.3,0.30523]
[1727661400732,3.51299,2620.7,2620.3,0.30523]
[1727661400934,0.30519,2620.6,2620.3,0.30522]
[1727661401131,0.30519,2620.6,2620.2,0.30524]
[1727661401639,3.51298,2620.7,2620.3,4.03686906]
[1727661401849,3.2078,2620.7,2620.3,4.03686906]
[1727661402135,3.2078,2620.7,2620.6,0.30519]
[1727661403039,3.9847,2621.0,2620.2,3.2078]
[1727661403240,3.9847,2621.0,2620.9,0.30516]
[1727661403241,3.2078,2621.0,2620.9,0.30516]
[1727661403546,3.2078,2621.0,2620.3,0.30523]
[1727661403547,4.67800103,2621.3,2620.5,3.2078]
[1727661403843,0.30515,2621.1,2620.7,4.72599012]
[1727661404138,3.2078,2621.0,2620.5,4.3628136]
[1727661404339,3.2078,2620.7,2620.5,4.3628136]
[1727661404533,3.51299,2620.7,2620.4,0.69201]
[1727661404841,3.51299,2620.7,2620.5,4.3628136]
[1727661405039,0.30519,2620.6,2620.5,4.3628136]
[1727661405237,4.1212,2620.6,2620.2,0.30523]
[1727661405445,0.30521,2620.5,2620.2,0.30523]
[1727661405645,3.2078,2620.7,2620.3,0.30522]
[1727661405646,0.3052,2620.6,2620.3,0.30522]
[1727661405833,3.2078,2620.7,2620.1,0.30524]
[1727661405834,4.67800103,2620.7,2620.1,0.30524]
[1727661406040,3.2078,2620.4,2620.0,0.30526]
[1727661406235,3.51302,2620.4,2620.0,0.30525]
[1727661406443,3.2078,2620.4,2620.0,4.05203501]
[1727661406740,3.51302,2620.4,2620.0,4.35729501]
[1727661407137,3.2078,2620.1,2619.7,0.3882]
[1727661407339,3.2078,2620.1,2619.1,1.97410056]
[1727661407340,3.2078,2619.8,2619.5,0.30532]
[1727661407643,3.2078,2619.8,2619.5,4.46197544]
[1727661408035,3.51309,2619.8,2619.4,0.30533]
[1727661408230,0.4004,2619.7,2619.3,0.386]
[1727661408642,0.4004,2619.7,2619.6,0.30531]
[1727661409044,0.4004,2619.7,2619.3,0.386]
[1727661409346,0.4004,2619.7,2619.4,0.30533]
[1727661409544,0.7057,2619.7,2619.3,0.30534]
[1727661409845,0.4004,2619.7,2619.4,0.30533]
[1727661410840,0.4004,2619.7,2619.4,0.30532]
[1727661412046,0.4004,2619.7,2619.2,0.4044]
[1727661412546,3.2078,2619.8,2619.7,0.3053]
[1727661413248,3.2078,2619.8,2619.5,0.30531]
[1727661413547,3.2078,2619.8,2619.3,4.03061044]
[1727661413942,0.3876,2620.0,2619.8,0.30529]
[1727661413943,1.85780103,2620.0,2619.8,0.30529]
[1727661414138,0.3876,2620.0,2619.9,0.30527]
[1727661414342,0.3876,2620.0,2619.8,0.30528]
[1727661415452,0.3876,2620.0,2619.9,0.30527]
[1727661415650,3.2078,2620.1,2619.9,0.30527]
[1727661415848,3.2078,2620.1,2619.8,0.30528]
[1727661416151,3.2078,2620.1,2619.3,4.19485028]
[1727661416453,3.2078,2620.1,2619.9,0.30526]
[1727661417354,3.2078,2620.1,2619.5,0.4111]
[1727661417540,3.2078,2620.1,2619.9,0.30527]
[1727661418248,3.2078,2620.1,2620.0,0.30526]
[1727661418453,5.36102103,2620.4,2620.1,0.30524]
[1727661419247,5.36102103,2620.4,2620.0,0.30526]
[1727661419749,5.36102103,2620.4,2619.9,0.30527]
[1727661419750,0.30524,2620.2,2619.9,0.30527]
[1727661419954,5.05580103,2620.4,2619.7,4.07420877]
[1727661420154,0.30523,2620.3,2620.0,4.37946877]
[1727661420350,0.30523,2620.3,2620.0,0.30526]
[1727661420548,0.30526,2620.1,2619.8,0.69318]
[1727661420751,0.30526,2620.1,2619.9,0.30527]
[1727661420752,3.2078,2620.1,2619.9,0.30527]
[1727661421056,3.2078,2620.1,2619.6,3.2078]
[1727661421057,5.5878,2620.1,2619.6,3.2078]
[1727661421358,5.89306,2620.1,2619.8,0.30528]
[1727661421753,0.30526,2620.0,2619.7,0.30529]
[1727661421944,5.89306,2620.1,2619.8,0.30528]
[1727661422656,5.89306,2620.1,2619.7,0.30529]
[1727661422657,0.30526,2620.0,2619.7,0.30529]
[1727661422850,0.30526,2620.0,2619.8,0.30529]
[1727661423046,5.5878,2620.1,2619.5,0.4111]
[1727661423248,3.2078,2619.8,2619.5,0.4111]
[1727661423447,3.2078,2619.8,2619.4,0.3879]
[1727661423448,3.2078,2619.8,2619.6,4.3423427]
[1727661423651,3.2078,2619.8,2619.4,0.30533]
[1727661423652,0.3972,2619.7,2619.4,0.30533]
[1727661423954,0.3972,2619.7,2619.6,0.30531]
[1727661424159,0.3972,2619.7,2619.5,0.30532]
[1727661424663,0.3972,2619.7,2619.6,0.30531]
[1727661424847,3.2078,2619.8,2619.7,0.3053]
[1727661425946,5.07520103,2620.1,2619.4,3.2078]
[1727661426155,3.605,2620.1,2619.4,3.2078]
[1727661426351,3.605,2620.1,2619.8,0.30528]
[1727661426652,5.985,2620.1,2619.5,4.38475885]
[1727661426859,4.67800103,2619.8,2618.9,1.75053028]
[1727661427055,4.67800103,2619.8,2619.5,0.30531]
[1727661427259,4.67800103,2619.8,2619.6,0.3053]
[1727661427260,5.06130103,2619.8,2619.6,0.3053]
[1727661427462,3.5911,2619.8,2619.6,0.3053]
[1727661427962,3.5911,2619.8,2619.2,4.38475885]
[1727661428162,3.5911,2619.8,2619.6,0.3053]
[1727661428460,3.5911,2619.8,2619.2,4.38475885]
[1727661428863,3.5911,2619.8,2619.6,0.30531]
[1727661429161,3.5911,2619.8,2619.5,0.30531]
[1727661429461,3.89639,2619.8,2619.5,0.30531]
[1727661429661,3.5911,2619.8,2619.6,0.3053]
[1727661430358,3.5911,2619.8,2619.7,0.3053]
[1727661430658,3.5911,2619.8,2619.2,4.38475885]
[1727661430963,3.5911,2619.8,2619.7,0.3053]
[1727661431155,5.07520103,2620.1,2619.9,0.30527]
[1727661431554,1.47020103,2620.1,2620.0,0.30526]
[1727661431762,4.98322103,2620.4,2620.1,0.30525]
[1727661432066,4.98322103,2620.4,2620.2,0.30523]
[1727661432067,4.67800103,2620.4,2620.2,0.30523]
[1727661432367,4.67800103,2620.4,2619.7,4.98352947]
[1727661432368,3.2078,2620.4,2620.3,0.30523]
[1727661433456,2.27100103,2620.7,2620.1,3.2078]
[1727661433655,2.27100103,2620.7,2620.2,0.3862]
[1727661433656,0.8008,2620.7,2620.2,0.3862]
[1727661433860,3.2078,2620.5,2620.2,0.69143]
[1727661434263,2.68522,2620.4,2620.1,0.30525]
[1727661434462,3.2078,2620.2,2620.1,0.30525]
[1727661434672,5.5878,2620.2,2619.7,0.4026]
[1727661434857,0.772,2620.1,2619.8,0.30528]
[1727661435057,1.07726,2620.1,2619.8,0.30528]
[1727661435266,0.30527,2620.0,2619.7,0.3053]
[1727661436068,2.24220103,2620.1,2619.4,3.5917]
[1727661436364,2.24220103,2620.1,2619.6,0.3053]
[1727661436365,3.51307,2619.9,2619.6,0.3053]
[1727661437167,3.2078,2619.9,2619.7,0.3053]
[1727661437475,3.2078,2619.9,2619.4,0.3839]
[1727661437867,3.2078,2619.9,2619.6,0.3053]
[1727661438068,2.38,2619.7,2619.3,0.3888]
[1727661438262,2.38,2619.7,2619.0,0.3733]
[1727661438263,2.38,2619.5,2619.0,0.3733]
[1727661438464,0.3755,2619.4,2619.0,0.67868]
[1727661438866,0.68084,2619.4,2619.0,0.3733]
[1727661439061,0.3755,2619.4,2619.0,0.3733]
[1727661439263,1.47020103,2619.7,2619.1,4.28086229]
[1727661439574,7.55025541,2619.9,2619.3,0.30534]
[1727661439575,7.36328103,2619.9,2619.3,0.30534]
[1727661439871,1.47020103,2619.8,2619.3,0.30534]
[1727661440064,3.2078,2619.6,2619.2,0.30535]
[1727661440270,3.2078,2619.6,2619.2,0.30534]
[1727661440471,3.2078,2619.6,2619.1,3.97549229]
[1727661440472,3.51312,2619.6,2619.3,4.17244303]
[1727661440667,0.30532,2619.5,2619.0,3.88648]
[1727661440867,0.3755,2619.4,2619.0,3.88648]
[1727661441579,0.3755,2619.4,2619.1,0.30536]
[1727661442169,3.51311,2619.6,2619.3,0.30534]
[1727661442170,4.67800103,2619.6,2619.3,0.30534]
[1727661442476,3.2078,2619.6,2619.1,4.10013939]
[1727661442669,3.2078,2619.6,2619.2,0.30535]
[1727661443269,3.2078,2619.6,2619.1,4.10013939]
[1727661443573,3.2078,2619.6,2619.5,0.30532]
[1727661443771,1.96245541,2620.0,2619.7,0.3053]
[1727661443772,4.67800103,2620.0,2619.7,0.3053]
[1727661444074,4.67800103,2620.0,2619.6,0.30531]
[1727661444075,3.2078,2620.0,2619.6,0.30531]
[1727661444468,3.2078,2620.0,2619.7,0.30529]
[1727661444663,2.38,2619.9,2619.5,0.30531]
[1727661444874,2.38,2619.9,2619.4,3.9744798]
[1727661444875,3.2078,2619.7,2619.6,0.30531]
[1727661445069,3.2078,2619.7,2619.5,0.30532]
[1727661445865,3.2078,2619.7,2619.1,3.2078]
[1727661445866,5.8931,2619.7,2619.1,3.2078]
[1727661446072,5.5878,2619.7,2619.3,0.30533]
[1727661446576,5.8931,2619.7,2619.3,0.30533]
[1727661446776,5.8931,2619.7,2619.1,0.30536]
[1727661446777,0.30532,2619.6,2619.1,0.30536]
[1727661446976,0.3757,2619.5,2619.0,0.3733]
[1727661447179,0.3757,2619.5,2619.3,0.30534]
[1727661447575,0.3757,2619.5,2619.1,4.01690761]
[1727661447576,0.3757,2619.5,2619.2,0.30535]
[1727661447767,0.3757,2619.5,2619.3,0.30534]
[1727661448576,0.3757,2619.5,2619.1,4.01690761]
[1727661448775,4.67800103,2619.7,2619.5,0.30532]
[1727661449080,4.67800103,2619.7,2619.5,0.30531]
[1727661449279,4.67800103,2619.7,2619.1,7.22470761]
[1727661449477,4.98330103,2619.7,2619.1,7.22470761]
[1727661449673,4.67800103,2619.7,2619.1,7.22470761]
[1727661449875,4.98330103,2619.7,2619.4,0.30533]
[1727661450185,1.47020103,2619.6,2619.3,0.30534]
[1727661450383,1.47020103,2619.6,2619.1,3.2078]
[1727661450774,3.2078,2619.7,2619.0,0.3733]
[1727661450775,3.2078,2619.4,2619.0,0.3733]
[1727661451480,3.2078,2619.4,2619.1,0.30536]
[1727661451886,0.30536,2619.2,2618.9,0.30539]
[1727661452077,5.9775,2619.1,2618.7,0.98705028]
[1727661452276,5.9775,2619.1,2618.6,0.4008]
[1727661452277,7.44770103,2619.1,2618.6,0.4008]
[1727661452489,7.75307103,2619.1,2618.6,0.4008]
[1727661452686,7.75307103,2619.1,2618.8,0.3054]
[1727661452886,7.75307103,2619.1,2618.6,0.4008]
[1727661453181,7.75307103,2619.1,2618.7,0.3054]
[1727661453377,0.30538,2619.0,2618.6,0.70622]
[1727661453587,7.75307103,2619.1,2618.7,0.3054]
[1727661453775,5.06770103,2619.1,2618.6,0.4008]
[1727661453975,5.06770103,2619.1,2618.9,0.30538]
[1727661454175,3.5975,2619.1,2618.7,0.30541]
[1727661454389,3.5975,2619.1,2618.6,0.4008]
[1727661454580,3.5975,2619.1,2619.0,0.30538]
[1727661454783,0.3897,2619.1,2619.0,0.30538]
[1727661455081,0.3897,2619.1,2618.7,4.3257688]
[1727661455283,0.69984,2619.3,2618.7,4.3257688]
[1727661455284,1.86470103,2619.3,2618.7,4.3257688]
[1727661455589,1.86990103,2619.7,2619.5,0.30531]
[1727661456187,0.3997,2619.7,2619.5,0.30531]
[1727661456378,0.3997,2619.7,2619.2,0.7943]
[1727661456581,0.3997,2619.7,2619.5,0.30531]
[1727661456876,0.705,2619.7,2619.3,0.30534]
[1727661457081,4.67800103,2619.6,2619.4,0.30532]
[1727661457283,4.67800103,2619.6,2619.5,0.30532]
[1727661457486,3.2078,2619.6,2619.5,0.30532]
[1727661461186,4.67800103,2619.9,2619.5,3.8176]
[1727661461381,4.67800103,2619.9,2619.8,0.30529]
[1727661461382,3.2078,2619.9,2619.8,0.30529]
[1727661462084,1.47020103,2620.1,2619.5,4.81690908]
[1727661462286,2.27440103,2620.2,2620.1,0.30525]
[1727661462487,3.43265644,2620.4,2619.9,5.5878]
[1727661462694,1.47020103,2620.7,2620.0,0.7954]
[1727661462894,1.47020103,2620.7,2620.4,0.30521]
[1727661462895,1.77538103,2620.7,2620.4,0.30521]
[1727661463094,1.47020103,2620.6,2620.4,0.30521]
[1727661463391,0.30521,2620.5,2620.2,0.30523]
[1727661463587,1.77541103,2620.5,2620.2,0.30523]
[1727661463782,1.47020103,2620.5,2620.2,0.30523]
[1727661464082,1.47020103,2620.5,2620.0,4.90687816]
[1727661464283,4.98320103,2620.6,2620.2,0.30523]
[1727661464681,4.98320103,2620.6,2620.0,4.90687816]
[1727661464886,4.98320103,2620.6,2620.2,0.30523]
[1727661465091,4.98320103,2620.6,2620.3,0.30523]
[1727661466084,0.30523,2620.3,2619.6,0.3878]
[1727661466286,0.7858,2620.2,2619.6,1.1571]
[1727661466592,2.56125103,2620.2,2619.8,0.30528]
[1727661466791,2.25600103,2620.2,2619.8,0.30528]
[1727661466992,3.2078,2620.0,2619.6,0.7693]
[1727661467195,3.51307,2620.0,2619.6,0.3812]
[1727661467391,3.2078,2620.0,2619.6,0.3812]
[1727661467599,3.2078,2620.0,2619.9,0.30527]
[1727661467901,3.2078,2620.0,2619.8,0.30528]
[1727661468107,0.30528,2619.9,2619.3,3.2078]
[1727661468295,1.47020103,2619.9,2619.3,3.2078]
[1727661468487,1.77549103,2619.8,2619.4,0.30533]
[1727661468693,3.2078,2619.7,2619.4,0.30533]
[1727661468892,0.3982,2619.6,2619.4,0.30533]
[1727661469189,0.3982,2619.6,2619.2,0.7681]
[1727661469493,0.3982,2619.6,2619.5,0.30532]
[1727661471395,0.3982,2619.6,2619.2,0.7681]
[1727661471695,0.3982,2619.6,2618.7,0.4073]
[1727661471696,3.2078,2619.4,2618.7,0.4073]
[1727661471905,0.30538,2619.0,2618.5,0.30543]
[1727661472095,0.763,2618.9,2618.5,0.30543]
[1727661472297,3.2078,2618.8,2618.5,0.30543]
[1727661472503,0.763,2618.9,2618.5,0.30543]
[1727661472801,5.44100103,2618.9,2618.5,0.30543]
[1727661473000,5.44100103,2618.9,2618.2,0.3887]
[1727661473189,3.2078,2618.6,2618.0,3.2078]
[1727661473395,3.2078,2618.6,2618.4,0.30545]
[1727661473794,3.2078,2618.6,2618.5,0.30544]
[1727661474194,2.23320103,2618.9,2618.3,3.2078]
[1727661474402,0.763,2618.9,2618.8,0.3054]
[1727661474800,4.5814,2618.9,2618.8,0.3054]
[1727661475099,4.67800103,2619.2,2619.0,0.30538]
[1727661475301,3.2078,2619.2,2619.0,0.30538]
[1727661475500,3.2078,2619.2,2618.6,3.2078]
[1727661475501,3.2078,2619.2,2618.7,0.30541]
[1727661475804,3.2078,2619.2,2619.0,0.30537]
[1727661476201,3.9971,2619.5,2619.1,0.30537]
[1727661476808,3.9971,2619.5,2618.9,3.2078]
[1727661477003,3.9971,2619.5,2618.7,4.19896195]
[1727661477203,3.9971,2619.5,2618.7,0.30541]
[1727661477408,3.9971,2619.5,2619.2,0.30535]
[1727661477607,3.9971,2619.5,2618.9,3.2078]
[1727661477808,3.9971,2619.5,2619.3,0.30534]
[1727661478307,0.3888,2619.5,2619.4,0.30533]
[1727661479011,4.67800103,2619.8,2619.6,0.30531]
[1727661479198,4.67800103,2619.8,2619.7,0.3053]